fUSD/lending_fUSD_20240530
["ID","MTS","AMOUNT","RATE_DAILY","PERIOD"]
[328234537,1717080652012,-500.0,0.00033296,11]
[328234538,1717080652022,-500.0,0.00033296,11]
[328234539,1717080652031,-500.0,0.00033296,11]
[328234540,1717080652040,-500.0,0.00033296,11]
[328234541,1717080652049,-412.29505742,0.00033296,11]
[328234542,1717080652059,-500.0,0.00033296,11]
[328234543,1717080652068,-500.0,0.00033296,11]
[328234544,1717080652077,-500.0,0.00033296,11]
[328234545,1717080652086,-500.0,0.00033296,11]
[328234546,1717080652095,-500.0,0.00033296,11]
[328234547,1717080652104,-510.6039175,0.00033296,11]
[328234548,1717080652114,-301.11410544,0.00033296,11]
[328234549,1717080652123,-502.7,0.00033296,11]
[328234550,1717080652133,-500.0,0.00033296,11]
[328234551,1717080652142,-530.99,0.00033296,11]
[328234552,1717080652152,-781.15428773,0.00033297,2]
[328234553,1717080652161,-338.459453,0.00033297,11]
[328234554,1717080652171,-500.0,0.00033297,11]
[328234555,1717080652179,-500.0,0.00033297,11]
[328234556,1717080652189,-500.0,0.00033297,11]
[328234557,1717080652198,-500.0,0.00033297,11]
[328234558,1717080652207,-500.0,0.00033297,11]
[328234559,1717080652216,-500.0,0.00033297,11]
[328234560,1717080652227,-500.0,0.00033297,11]
[328234561,1717080652240,-500.0,0.00033297,11]
[328234562,1717080652249,-500.0,0.00033297,11]
[328234563,1717080652258,-500.0,0.00033297,11]
[328234564,1717080652267,-500.0,0.00033297,11]
[328234565,1717080652278,-500.0,0.00033297,11]
[328234566,1717080652287,-500.0,0.00033297,11]
[328234567,1717080652296,-500.0,0.00033297,11]
[328234568,1717080652305,-500.0,0.00033297,11]
[328234569,1717080652316,-500.0,0.00033297,11]
[328234570,1717080652326,-824.54,0.00033297,11]
[328234571,1717080652336,-619.09,0.00033297,11]
[328234572,1717080652345,-256.19108857,0.00033297,11]
[328234573,1717080652355,-3735.89,0.00033297,11]
[328234574,1717080652364,-356.60537224,0.00033298,2]
[328234575,1717080652373,-194.4869091,0.00033298,4]
[328234576,1717080652383,-938.7059888,0.00033298,2]
[328234577,1717080652392,-1273.86928001,0.00033298,4]
[328234578,1717080652402,-527.19686875,0.00033298,4]
[328234579,1717080652412,-5266.27921247,0.00033298,4]
[328234580,1717080652421,-409.84120861,0.00033298,4]
[328234581,1717080652430,-701.87350517,0.00033298,14]
[328234582,1717080652440,-155.0,0.00033298,4]
[328234583,1717080652449,-155.97820346,0.00033298,4]
[328234584,1717080652458,-259.08174527,0.00033298,4]
[328234585,1717080652467,-601.71205611,0.00033298,4]
[328234586,1717080652476,-623.222624,0.00033298,4]
[328234587,1717080652487,-4741.84357369,0.00033298,4]
[328234588,1717080652496,-200.87999732,0.00033298,4]
[328234589,1717080652506,-283.12482256,0.00033298,4]
[328234590,1717080652516,-523.91853483,0.00033298,4]
[328234591,1717080652525,-288.18130188,0.00033298,4]
[328234592,1717080652535,-205.63826311,0.00033298,4]
[328234593,1717080652543,-268.32530534,0.00033298,4]
[328234594,1717080652553,-2000.09259381,0.00033298,4]
[328234595,1717080652563,-155.0,0.00033298,4]
[328234596,1717080652572,-180.0,0.00033298,4]
[328234597,1717080652581,-536.24165231,0.00033298,4]
[328234598,1717080652590,-155.22122519,0.00033298,4]
[328234599,1717080652599,-156.15744793,0.00033298,4]
[328234600,1717080652609,-6164.42169924,0.00033298,4]
[328234601,1717080652618,-643.9738315,0.00033298,4]
[328234602,1717080652629,-292.31917088,0.00033298,4]
[328234603,1717080652638,-5433.407838,0.00033298,4]
[328234604,1717080652647,-2351.41144802,0.00033298,4]
[328234605,1717080652658,-155.0,0.00033298,4]
[328234606,1717080652668,-325.28545213,0.00033298,4]
[328234607,1717080652677,-5900.0,0.00033298,10]
[328234608,1717080652687,-620.8177248,0.00033298,4]
[328234610,1717080652809,-257.65395905,0.00033298,2]
[328234611,1717080652819,-155.20000855,0.00033298,4]
[328234612,1717080652828,-184.01261491,0.00033298,4]
[328234613,1717080652838,-200.0,0.00033298,2]
[328234614,1717080652848,-263.5850197,0.00033298,4]
[328234615,1717080652857,-804.69308319,0.00033298,4]
[328234616,1717080652866,-410.5352738,0.00033298,2]
[328234617,1717080652876,-155.79731057,0.00033298,4]
[328234618,1717080652886,-5191.77672902,0.00033298,4]
[328234619,1717080652895,-159.55265072,0.00033298,4]
[328234620,1717080652904,-1782.4784505,0.00033298,4]
[328234621,1717080652914,-7600.0,0.00033298,4]
[328234622,1717080652923,-155.0,0.00033298,4]
[328234623,1717080652933,-1265.00919178,0.00033298,120]
[328234624,1717080652942,-216.17270932,0.00033298,4]
[328234625,1717080652952,-155.59163444,0.00033298,4]
[328234626,1717080652961,-787.9608808,0.00033298,4]
[328234627,1717080652970,-636.95342605,0.00033298,4]
[328234628,1717080652979,-200.72536958,0.00033298,4]
[328234629,1717080652988,-9165.01168864,0.00033298,4]
[328234630,1717080652997,-505.11759402,0.00033298,4]
[328234631,1717080653007,-446.07424012,0.00033298,4]
[328234632,1717080653016,-6778.78246295,0.00033298,4]
[328234633,1717080653025,-2635.99163073,0.00033298,2]
[328234634,1717080653035,-19417.56126702,0.00033298,4]
[328234635,1717080653045,-27015.9937501,0.00033298,4]
[328234636,1717080653054,-1380.30322781,0.00033298,4]
[328234637,1717080653063,-23844.69262994,0.00033298,4]
[328234638,1717080653072,-2345.12481961,0.00033298,4]
[328234639,1717080653082,-432.64384735,0.00033298,4]
[328234640,1717080653091,-574.22,0.00033298,11]
[328234641,1717080653101,-623.21335124,0.00033298,11]
[328234642,1717080653110,-500.0,0.00033298,11]
[328234643,1717080653119,-453.10242594,0.00033298,11]
[328234644,1717080653128,-500.0,0.00033298,11]
[328234645,1717080653137,-500.0,0.00033298,11]
[328234646,1717080653146,-500.0,0.00033298,11]
[328234647,1717080653155,-500.0,0.00033298,11]
[328234648,1717080653164,-500.0,0.00033298,11]
[328234649,1717080653174,-530.99,0.00033298,11]
[328234650,1717080653183,-594.84,0.00033298,11]
[328234651,1717080653192,-500.0,0.00033298,11]
[328234652,1717080653201,-1044.13352714,0.00033299,4]
[328234653,1717080653209,-447.04048883,0.00033299,7]
[328234654,1717080653219,-191.58878093,0.00033299,7]
[328234655,1717080653230,-2000.0,0.00033299,2]
[328234656,1717080653240,-574.22,0.00033299,11]
[328234657,1717080653250,-574.22,0.00033299,11]
[328234658,1717080653259,-574.22,0.00033299,11]
[328234659,1717080653268,-574.22,0.00033299,11]
[328234660,1717080653279,-574.22,0.00033299,11]
[328234661,1717080653288,-574.22,0.00033299,11]
[328234662,1717080653297,-574.22,0.00033299,11]
[328234663,1717080653307,-574.22,0.00033299,11]
[328234664,1717080653316,-574.22,0.00033299,11]
[328234665,1717080653326,-574.22,0.00033299,11]
[328234666,1717080653337,-574.38,0.00033299,11]
[328234667,1717080653347,-500.0,0.00033299,11]
[328234668,1717080653356,-500.0,0.00033299,11]
[328234669,1717080653366,-500.0,0.00033299,11]
[328234670,1717080653375,-500.0,0.00033299,11]
[328234671,1717080653384,-500.0,0.00033299,11]
[328234672,1717080653394,-500.0,0.00033299,11]
[328234673,1717080653405,-500.0,0.00033299,11]
[328234674,1717080653415,-500.0,0.00033299,11]
[328234675,1717080653425,-274.57716379,0.00033299,11]
[328234676,1717080653435,-500.0,0.00033299,11]
[328234677,1717080653445,-607.45881679,0.00033299,11]
[328234678,1717080653455,-824.54,0.00033299,11]
[328234679,1717080653466,-824.54,0.00033299,11]
[328234680,1717080653476,-824.54,0.00033299,11]
[328234681,1717080653485,-824.54,0.00033299,11]
[328234682,1717080653494,-824.54,0.00033299,11]
[328234683,1717080653504,-824.54,0.00033299,11]
[328234684,1717080653513,-824.54,0.00033299,11]
[328234685,1717080653522,-824.54,0.00033299,11]
[328234686,1717080653532,-824.54,0.00033299,11]
[328234687,1717080653541,-824.54,0.00033299,11]
[328234688,1717080653550,-824.54,0.00033299,11]
[328234689,1717080653560,-824.54,0.00033299,11]
[328234690,1717080653569,-824.71,0.00033299,11]
[328234691,1717080653580,-500.0,0.00033299,11]
[328234692,1717080653589,-500.0,0.00033299,11]
[328234693,1717080653598,-500.0,0.00033299,11]
[328234694,1717080653609,-500.0,0.00033299,11]
[328234695,1717080653618,-500.0,0.00033299,11]
[328234696,1717080653627,-500.0,0.00033299,11]
[328234697,1717080653637,-530.99,0.00033299,11]
[328234698,1717080653646,-500.0,0.00033299,11]
[328234699,1717080653656,-530.99,0.00033299,11]
[328234700,1717080653667,-500.0,0.00033299,11]
[328234701,1717080653677,-500.0,0.00033299,11]
[328234702,1717080653686,-530.99,0.00033299,11]
[328234703,1717080653695,-406.24,0.00033299,11]
[328234704,1717080653705,-530.99,0.00033299,11]
[328234705,1717080653715,-530.99,0.00033299,11]
[328234706,1717080653725,-530.99,0.00033299,11]
[328234707,1717080653734,-530.99,0.00033299,11]
[328234708,1717080653744,-530.99,0.00033299,11]
[328234709,1717080653753,-530.99,0.00033299,11]
[328234710,1717080653763,-530.99,0.00033299,11]
[328234711,1717080653773,-531.1,0.00033299,11]
[328234712,1717080653782,-594.84,0.00033299,11]
[328234713,1717080653791,-594.84,0.00033299,11]
[328234714,1717080653800,-594.84,0.00033299,11]
[328234715,1717080653810,-594.84,0.00033299,11]
[328234716,1717080653819,-594.84,0.00033299,11]
[328234717,1717080653829,-594.84,0.00033299,11]
[328234718,1717080653839,-594.84,0.00033299,11]
[328234719,1717080653849,-594.84,0.00033299,11]
[328234720,1717080653858,-594.84,0.00033299,11]
[328234721,1717080653867,-594.84,0.00033299,11]
[328234722,1717080653877,-594.88,0.00033299,11]
[328234723,1717080653886,-619.09,0.00033299,11]
[328234724,1717080653896,-619.09,0.00033299,11]
[328234725,1717080653905,-619.09,0.00033299,11]
[328234726,1717080653915,-619.09,0.00033299,11]
[328234727,1717080653924,-619.09,0.00033299,11]
[328234728,1717080653934,-619.09,0.00033299,11]
[328234729,1717080653943,-619.09,0.00033299,11]
[328234730,1717080653953,-619.09,0.00033299,11]
[328234731,1717080653963,-619.09,0.00033299,11]
[328234732,1717080653972,-619.09,0.00033299,11]
[328234733,1717080653981,-619.09,0.00033299,11]
[328234734,1717080653991,-619.09,0.00033299,11]
[328234735,1717080654000,-619.11000001,0.00033299,11]
[328234736,1717080654010,-500.0,0.00033299,20]
[328234737,1717080654019,-3735.89,0.00033299,11]
[328234738,1717080654029,-3735.89,0.00033299,11]
[328234739,1717080654038,-3735.89,0.00033299,11]
[328234740,1717080654047,-3735.89,0.00033299,11]
[328234741,1717080654056,-3735.89,0.00033299,11]
[328234742,1717080654065,-3735.89,0.00033299,11]
[328234743,1717080654075,-3735.89,0.00033299,11]
[328234744,1717080654085,-3735.89,0.00033299,11]
[328234745,1717080654094,-3735.89,0.00033299,11]
[328234746,1717080654104,-3735.89,0.00033299,11]
[328234747,1717080654113,-3735.89,0.00033299,11]
[328234748,1717080654123,-3735.89,0.00033299,11]
[328234749,1717080654132,-3735.91049501,0.00033299,11]
[328234750,1717080654141,-500.0,0.00033299,11]
[328234751,1717080654151,-223.08000001,0.00033299,11]
[328234752,1717080654161,-169.88819956,0.00033299,30]
[328234753,1717080654171,-1133.64022228,0.000333,5]
[328234754,1717080654180,-4379.35979702,0.000333,13]
[328234755,1717080654190,-249516.34855944,0.000333,5]
[328234756,1717080654210,-378.25350976,0.000333,5]
[328234757,1717080654221,-607.71542608,0.000333,5]
[328234758,1717080654269,-500.0,0.00032876,11]
[328234759,1717080654279,-500.0,0.00032876,11]
[328234760,1717080654288,-1496.85558622,0.00033298,4]
[328234761,1717080654297,-3178.67705477,0.000333,5]
[328234762,1717080654443,-624.01497241,0.000333,5]
[328234763,1717080654455,-1380.30322781,0.000333,5]
[328234764,1717080654466,-6273.24001771,0.000333,5]
[328234766,1717080654548,1861.25199178,0.00013694,2]
[328234768,1717080659691,299.23019146,0.00013973,2]
[328234769,1717080666748,346.57302212,0.00013973,2]
[328234770,1717080667467,34398.78471285,0.00015,2]
[328234771,1717080667574,85623.57585499,0.00013973,2]
[328234772,1717080668916,2684.54892385,0.00013973,2]
[328234776,1717080674739,2605.72998571,0.00013694,2]
[328234782,1717080955037,1500.0,0.00030137,30]
[328234783,1717081176610,155.42,0.00013973,2]
[328234798,1717081774188,-544.72756964,0.00017146,2]
[328234799,1717081774212,-2385.42283036,0.00017147,2]
[328234814,1717081835612,-648.56859254,0.00017146,2]
[328234816,1717081835628,-65.67872489,0.00017146,2]
[328234818,1717081835639,-3095.3767325,0.00017152,2]
[328234820,1717081835653,-253.58312312,0.00017259,2]
[328234824,1717081835666,-150.0,0.00017807,2]
[328234826,1717081835679,-150.0,0.00017807,2]
[328234827,1717081835694,-3608.81,0.000192,2]
[328234828,1717081835707,-224.99,0.000192,2]
[328234829,1717081835719,-999.99,0.000192,2]
[328234830,1717081835733,-3581.49490791,0.00019451,2]
[328234831,1717081835749,-304.8099405,0.00019451,2]
[328234832,1717081835760,-233.04,0.00019726,2]
[328234833,1717081835772,-863.06900647,0.0002,2]
[328234834,1717081835783,-484.53,0.00022276,2]
[328234835,1717081835797,-4115.08,0.00022358,2]
[328234836,1717081835807,-167.84,0.00022484,2]
[328234837,1717081835818,-289.59,0.00022552,2]
[328234838,1717081835828,-159.59,0.00022587,2]
[328234839,1717081835840,-250.0,0.00022607,2]
[328234840,1717081835850,-508.34,0.00022708,2]
[328234841,1717081835862,-500.0,0.00022741,2]
[328234842,1717081835873,-168.05,0.00022916,2]
[328234843,1717081835884,-159.59,0.0002298,2]
[328234844,1717081835895,-159.59,0.00023372,2]
[328234845,1717081835908,-159.59,0.00023764,2]
[328234846,1717081835919,-2582.49,0.00024132,2]
[328234847,1717081835931,-339.48,0.00024177,2]
[328234848,1717081835943,-627.99,0.00024177,2]
[328234849,1717081835955,-250.0,0.00024225,2]
[328234850,1717081835968,-933.53,0.00024228,2]
[328234851,1717081835981,-7852.03221917,0.00024422,2]
[328234852,1717081835992,-184.108,0.00024422,2]
[328234853,1717081836005,-23900.0,0.00024423,2]
[328234854,1717081836016,-484.53,0.0002454,2]
[328234855,1717081836026,-173.14,0.0002469,3]
[328234856,1717081836036,-519.42,0.0002469,3]
[328234857,1717081836047,-3924.98798486,0.000247,2]
[328234858,1717081836076,-723.93,0.000247,2]
[328234859,1717081836091,-581.1700554,0.000247,2]
[328234860,1717081836106,-15000.00000521,0.000247,2]
[328234861,1717081836120,-504.69421276,0.000247,2]
[328234862,1717081836136,-423.32484874,0.000247,2]
[328234863,1717081836150,-2470.24297497,0.000247,2]
[328234864,1717081836162,-1114.381095,0.000247,2]
[328234865,1717081836174,-939.82724979,0.000247,2]
[328234868,1717081836188,-360.31432487,0.000247,2]
[328234870,1717081836202,-882.33461522,0.000247,2]
[328234871,1717081836215,-580.73799424,0.000247,2]
[328234872,1717081836229,-305521.05463894,0.000247,2]
[328234873,1717081836239,-404.16323054,0.00025183,2]
[328234874,1717081836250,-11725.0,0.000256,3]
[328234875,1717081836261,-184.108,0.00025704,2]
[328234876,1717081836271,-346.28,0.0002606,3]
[328234877,1717081836284,-404.16323046,0.00026074,2]
[328234878,1717081836301,-11725.0,0.000265,5]
[328234879,1717081836311,-484.53,0.00026804,2]
[328234880,1717081836323,-200.0,0.00026844,2]
[328234881,1717081836335,-339.48,0.00026917,2]
[328234882,1717081836347,-404.16323046,0.00026965,2]
[328234883,1717081836359,-550.0,0.00027,2]
[328234884,1717081836370,-184.108,0.00027121,2]
[328234885,1717081836380,-933.53,0.00027256,2]
[328234886,1717081836393,-404.16323046,0.00027855,2]
[328234887,1717081836404,-184.108,0.00028691,2]
[328234888,1717081836415,-404.16323046,0.00028746,2]
[328234889,1717081836426,-9681.5374,0.0002888,2]
[328234890,1717081836437,-312.58914297,0.00028967,2]
[328234891,1717081836448,-484.53,0.00029067,2]
[328234892,1717081836459,-150.0,0.00029403,2]
[328234893,1717081836470,-150.0,0.00029622,2]
[328234894,1717081836481,-411.70996481,0.00029635,2]
[328234895,1717081836492,-404.16323046,0.00029637,2]
[328234896,1717081836504,-339.48,0.00029656,2]
[328234897,1717081836514,-27.4116653,0.00029659,2]
[328234898,1717081836528,-122.5883347,0.00029659,2]
[328234899,1717081836539,-150.0,0.00029728,2]
[328234900,1717081836551,-150.0,0.0002974,2]
[328234901,1717081836562,-150.0,0.00029751,2]
[328234902,1717081836573,-1489.0,0.000299,4]
[328234903,1717081836584,-150.0,0.00029934,2]
[328234904,1717081836595,-150.0,0.00029978,2]
[328234905,1717081836606,-150.0,0.00029995,2]
[328234906,1717081836620,-289.0,0.00029996,2]
[328234907,1717081836631,-5143.0,0.00029996,2]
[328234908,1717081836642,-5769.0,0.00029996,2]
[328234909,1717081836655,-166.76,0.00030079,2]
[328234910,1717081836665,-150.0,0.00030111,2]
[328234911,1717081836687,-150.0,0.0003018,2]
[328234912,1717081836701,-150.0,0.00030221,2]
[328234913,1717081836714,-150.0,0.00030221,2]
[328234914,1717081836726,-150.0,0.00030241,2]
[328234915,1717081836740,-150.0,0.00030249,2]
[328234916,1717081836752,-933.53,0.00030285,2]
[328234917,1717081836765,-150.0,0.00030319,2]
[328234918,1717081836776,-150.0,0.00030449,2]
[328234919,1717081836788,-150.0,0.0003047,2]
[328234920,1717081836801,-150.0,0.00030474,2]
[328234921,1717081836812,-404.16323046,0.00030528,10]
[328234922,1717081836824,-150.0,0.00030691,2]
[328234923,1717081836835,-150.0,0.00030714,2]
[328234924,1717081836847,-150.0,0.0003073,2]
[328234925,1717081836859,-150.0,0.00030824,2]
[328234926,1717081836871,-150.0,0.00030908,2]
[328234927,1717081836882,-150.0,0.0003091,2]
[328234928,1717081836894,-192.66109184,0.00030976,2]
[328234929,1717081836905,-150.0,0.00030979,2]
[328234930,1717081836917,-150.0,0.00031048,2]
[328234931,1717081836928,-150.0,0.00031163,2]
[328234932,1717081836940,-976.0,0.00031194,2]
[328234933,1717081836951,-1646.0,0.00031194,2]
[328234934,1717081836962,-1224.0,0.00031194,2]
[328234935,1717081836973,-1265.0,0.00031194,2]
[328234936,1717081836985,-150.0,0.00031194,2]
[328234937,1717081836996,-808.0,0.00031194,2]
[328234938,1717081837009,-165.0,0.00031194,2]
[328234939,1717081837020,-2400.0,0.00031194,2]
[328234940,1717081837032,-216.0,0.00031194,2]
[328234941,1717081837044,-1304.0,0.00031194,2]
[328234942,1717081837055,-1652.0,0.00031194,2]
[328234943,1717081837068,-150.0,0.00031194,2]
[328234944,1717081837080,-3167.0,0.00031194,2]
[328234945,1717081837092,-545.0,0.00031194,2]
[328234946,1717081837103,-150.0,0.00031208,2]
[328234947,1717081837116,-150.0,0.00031314,2]
[328234948,1717081837128,-484.53,0.00031331,2]
[328234949,1717081837140,-150.0,0.00031366,2]
[328234950,1717081837152,-150.0,0.0003141,2]
[328234951,1717081837167,-404.16323046,0.00031418,10]
[328234952,1717081837179,-150.0,0.00031428,2]
[328234953,1717081837190,-167.19067972,0.00031528,7]
[328234954,1717081837406,-150.0,0.0003154,2]
[328234955,1717081837427,-150.0,0.00031567,2]
[328234956,1717081837438,-150.0,0.00031606,2]
[328234957,1717081837447,-150.0,0.00031608,2]
[328234958,1717081837457,-154.48866894,0.00031609,7]
[328234959,1717081837466,-506.80970214,0.00031611,7]
[328234960,1717081837476,-1823.3659,0.00031627,2]
[328234961,1717081837485,-150.0,0.00031629,2]
[328234962,1717081837494,-150.0,0.0003163,2]
[328234963,1717081837504,-313.9335661,0.00031633,7]
[328234964,1717081837515,-733.18794817,0.00031633,4]
[328234965,1717081837524,-150.0,0.00031652,2]
[328234966,1717081837534,-150.0,0.00031696,2]
[328234967,1717081837548,-150.0,0.00031794,2]
[328234968,1717081837558,-150.0,0.00031817,2]
[328234969,1717081837568,-150.0,0.00031853,2]
[328234970,1717081837577,-506.80970214,0.00031865,7]
[328234971,1717081837587,-150.0,0.00031901,2]
[328234972,1717081837599,-300.0,0.00031923,2]
[328234973,1717081837612,-150.0,0.0003196,2]
[328234974,1717081837622,-300.0,0.00031965,2]
[328234975,1717081837632,-153.75187007,0.00031992,7]
[328234976,1717081837641,-150.0,0.00031997,2]
[328234977,1717081837653,-150.0,0.00032001,2]
[328234978,1717081837665,-300.0,0.00032002,2]
[328234979,1717081837676,-150.0,0.00032003,2]
[328234980,1717081837686,-300.0,0.00032047,2]
[328234981,1717081837705,-300.0,0.00032055,2]
[328234982,1717081837713,-298.99557275,0.00032058,2]
[328234983,1717081837721,-150.0,0.0003207,2]
[328234984,1717081837729,-154.77012196,0.0003208,7]
[328234985,1717081837737,-150.0,0.00032092,2]
[328234986,1717081837746,-150.0,0.00032129,2]
[328234987,1717081837754,-153.75187007,0.00032144,7]
[328234988,1717081837761,-150.0,0.00032204,2]
[328234989,1717081837769,-300.0,0.00032232,2]
[328234990,1717081837777,-150.0,0.00032234,2]
[328234991,1717081837785,-150.0,0.0003226,2]
[328234992,1717081837797,-150.0,0.00032272,2]
[328234993,1717081837807,-300.0,0.00032274,2]
[328234994,1717081837816,-98.2475755,0.00032277,2]
[328234995,1717081837828,-341.24011699,0.00032277,2]
[328234996,1717081837860,-183.86038345,0.00032277,2]
[328234997,1717081837869,-404.16323046,0.00032309,10]
[328234998,1717081837879,-150.0,0.00032328,2]
[328234999,1717081837889,-126.86138609,0.00032344,2]
[328235031,1717081841620,-214.7955403,0.00017052,2]
[328235034,1717081841630,-150.0,0.00028773,2]
[328235035,1717081841638,-150.0,0.00028798,2]
[328235038,1717081841648,-24.26729111,0.00028886,2]
[328235040,1717081841660,-125.73270889,0.00028886,2]
[328235041,1717081841670,-150.0,0.00028938,2]
[328235043,1717081841679,-150.0,0.00029014,2]
[328235044,1717081841690,-150.0,0.00029319,2]
[328235046,1717081841699,-150.0,0.00029451,2]
[328235047,1717081841707,-150.0,0.0002952,2]
[328235049,1717081841717,-150.0,0.00029532,2]
[328235050,1717081841726,-1468.0,0.00029996,2]
[328235052,1717081841735,-150.0,0.00030048,2]
[328235053,1717081841744,-150.0,0.00030052,2]
[328235054,1717081841754,-150.0,0.00030074,2]
[328235055,1717081841763,-150.0,0.00030223,2]
[328235056,1717081841772,-150.0,0.00030237,2]
[328235057,1717081841781,-150.0,0.00030245,2]
[328235058,1717081841791,-150.0,0.00030313,2]
[328235059,1717081841802,-150.0,0.00030355,2]
[328235060,1717081841811,-150.0,0.0003048,2]
[328235061,1717081841819,-150.0,0.00030492,2]
[328235062,1717081841829,-150.0,0.00030991,2]
[328235063,1717081841838,-150.0,0.00031002,2]
[328235064,1717081841847,-150.0,0.00031003,2]
[328235065,1717081841856,-150.0,0.00031076,2]
[328235066,1717081841865,-150.0,0.00031175,2]
[328235067,1717081841874,-150.0,0.00031367,2]
[328235068,1717081841883,-150.0,0.00031422,2]
[328235069,1717081841893,-150.0,0.00031612,2]
[328235070,1717081841902,-150.0,0.00031768,2]
[328235071,1717081841911,-150.0,0.00031923,2]
[328235072,1717081841920,-150.0,0.00031927,2]
[328235073,1717081841929,-150.0,0.00032059,2]
[328235074,1717081841938,-23.13861391,0.00032344,2]
[328235075,1717081841947,-151.05877725,0.00032346,7]
[328235076,1717081841956,-1500.0,0.00032397,2]
[328235077,1717081841966,-150.0,0.00032434,2]
[328235078,1717081841975,-1500.0,0.00032448,2]
[328235079,1717081841985,-150.0,0.00032457,2]
[328235080,1717081841994,-150.0,0.00032477,2]
[328235081,1717081842003,-150.0,0.00032492,2]
[328235082,1717081842012,-150.0,0.0003252,2]
[328235083,1717081842022,-150.0,0.00032523,2]
[328235084,1717081842031,-150.0,0.00032531,2]
[328235085,1717081842041,-150.0,0.00032534,2]
[328235086,1717081842052,-150.0,0.00032591,2]
[328235087,1717081842061,-150.0,0.00032596,2]
[328235088,1717081842074,-300.0,0.000326,2]
[328235089,1717081842083,-150.0,0.00032621,2]
[328235090,1717081842093,-154.35000044,0.0003263,7]
[328235091,1717081842103,-150.0,0.00032632,2]
[328235092,1717081842112,-150.0,0.00032634,2]
[328235093,1717081842121,-150.0,0.00032647,2]
[328235094,1717081842130,-150.0,0.00032655,2]
[328235095,1717081842139,-300.0,0.00032655,2]
[328235096,1717081842148,-150.0,0.00032659,2]
[328235097,1717081842163,-150.0,0.0003266,2]
[328235098,1717081842177,-150.0,0.00032675,2]
[328235099,1717081842186,-150.0,0.00032676,2]
[328235100,1717081842195,-150.0,0.00032678,2]
[328235101,1717081842204,-1500.0,0.00032703,2]
[328235102,1717081842214,-150.0,0.00032703,2]
[328235103,1717081842223,-506.80970214,0.00032713,7]
[328235104,1717081842232,-300.0,0.00032714,2]
[328235105,1717081842242,-154.48866894,0.00032734,7]
[328235106,1717081842251,-700.7644,0.00032776,2]
[328235107,1717081842261,-109.01670475,0.00032785,2]
[328235141,1717081843794,-150.0,0.00028886,2]
[328235142,1717081843808,-150.0,0.00029103,2]
[328235143,1717081843821,-150.0,0.0002944,2]
[328235144,1717081843831,-150.0,0.00029616,2]
[328235145,1717081843841,-150.0,0.00029847,2]
[328235146,1717081843850,-150.0,0.00029934,2]
[328235147,1717081843860,-150.0,0.00030067,2]
[328235148,1717081843869,-150.0,0.00030204,2]
[328235149,1717081843878,-150.0,0.00030319,2]
[328235150,1717081843887,-150.0,0.00030326,2]
[328235151,1717081843897,-150.0,0.00030442,2]
[328235152,1717081843906,-150.0,0.00030482,2]
[328235153,1717081843915,-150.0,0.00030519,2]
[328235154,1717081843925,-150.0,0.00030533,2]
[328235155,1717081843934,-150.0,0.00030744,2]
[328235156,1717081843944,-150.0,0.00030771,2]
[328235157,1717081843954,-150.0,0.00030796,2]
[328235158,1717081843963,-150.0,0.00030805,2]